bitfinex-derivatives/quotes_ETHF0:USTF0_20250123
["timestamp","ask_amount","ask_price","bid_price","bid_amount"]
[1737635058196,0.63862995,3197.8,3197.3,3.21249814]
[1737635058401,0.62569,3197.6,3197.3,3.83822814]
[1737635058702,0.5124,3197.5,3197.3,3.21249814]
[1737635059000,0.5124,3197.5,3197.4,0.62572]
[1737635059202,0.66442995,3197.5,3197.3,3.83822814]
[1737635060100,0.66442995,3197.5,3197.4,0.62572]
[1737635060498,0.66442995,3197.5,3197.3,3.83822814]
[1737635060998,3.2078,3197.4,3197.3,0.00469814]
[1737635061298,3.2078,3197.4,3197.3,0.63043814]
[1737635061598,3.35982995,3197.4,3197.3,0.63043814]
[1737635065906,3.35982995,3197.4,3197.3,0.00469814]
[1737635066204,3.98554995,3197.4,3197.3,0.00469814]
[1737635066406,3.35982995,3197.4,3197.3,0.00469814]
[1737635067000,3.98554995,3197.4,3197.3,0.00469814]
[1737635067200,3.35982995,3197.4,3197.3,0.00469814]
[1737635067603,3.35982995,3197.4,3197.3,0.63043814]
[1737635069600,0.15202995,3197.4,3197.3,0.63043814]
[1737635072404,0.15202995,3197.4,3197.3,0.63043814]
[1737635073216,0.15202995,3197.4,3197.3,0.00469814]
[1737635073513,0.15202995,3197.4,3197.3,0.63043814]
[1737635074617,3.35982995,3197.4,3197.3,0.00469814]
[1737635074911,3.98554995,3197.4,3197.3,0.00469814]
[1737635075310,3.35982995,3197.4,3197.3,0.00469814]
[1737635075715,3.35982995,3197.4,3197.3,0.63043814]
[1737635075916,3.35982995,3197.4,3197.3,0.00469814]
[1737635076614,3.98554995,3197.4,3197.3,0.00469814]
[1737635076814,0.62581,3197.0,3196.7,0.47852819]
[1737635077013,4.2213,3196.9,3196.7,0.47852819]
[1737635077211,4.2213,3196.9,3196.4,40.8]
[1737635077518,4.2213,3196.9,3196.4,0.62591]
[1737635077519,0.62587,3196.7,3196.4,0.62591]
[1737635077703,6.70342109,3196.9,3196.3,0.62593]
[1737635077704,3.2078,3196.5,3196.3,0.62593]
[1737635078016,3.2078,3196.5,3196.4,0.62592]
[1737635078706,3.2078,3196.5,3196.2,0.0046905]
[1737635079014,0.62593,3196.4,3196.2,40.8046905]
[1737635079410,3.2078,3196.5,3196.2,0.0046905]
[1737635079609,0.62594,3196.3,3196.2,0.0046905]
[1737635080612,7.10168389,3196.3,3196.2,0.0046905]
[1737635080812,12.10168389,3196.3,3196.2,0.0046905]
[1737635081010,12.10168389,3196.3,3195.3,0.5063]
[1737635081011,0.62608,3195.6,3195.3,0.5063]
[1737635081212,3.2078,3195.6,3195.2,0.62615]
[1737635081417,3.2078,3195.6,3194.8,0.5166]
[1737635081612,3.2078,3195.1,3194.8,0.5166]
[1737635081815,3.2078,3195.1,3194.8,1.14282]
[1737635082315,3.2078,3195.1,3194.8,0.5166]
[1737635082529,3.2078,3195.1,3194.9,0.62621]
[1737635082822,0.19583698,3195.0,3194.8,1.14282]
[1737635083110,0.19583698,3194.9,3194.8,1.14282]
[1737635083315,3.2078,3195.1,3194.8,1.14282]
[1737635083518,0.19583793,3195.0,3194.8,0.5166]
[1737635083718,3.2078,3195.1,3194.9,0.62621]
[1737635083919,3.2078,3195.1,3194.8,1.14282]
[1737635084313,3.2078,3195.1,3194.8,0.5166]
[1737635084516,3.2078,3195.1,3194.9,0.6262]
[1737635084912,3.2078,3195.1,3194.8,0.5166]
[1737635085116,3.2078,3195.1,3194.8,1.14282]
[1737635085309,3.2078,3195.1,3194.8,0.5166]
[1737635085721,3.2078,3195.1,3194.9,0.62621]
[1737635086111,3.2078,3195.1,3194.8,0.62622]
[1737635086311,0.62619,3195.0,3194.7,40.8]
[1737635086515,3.2078,3195.1,3194.8,0.62623]
[1737635087425,3.2078,3195.1,3194.7,40.8]
[1737635087723,0.6262,3195.0,3194.7,40.8]
[1737635087915,3.2078,3195.1,3194.7,40.8]
[1737635088222,3.83398,3195.1,3194.7,41.42625]
[1737635088421,3.83399,3195.1,3194.7,40.8]
[1737635088616,3.2078,3195.1,3194.8,0.62623]
[1737635089121,3.83398,3195.1,3194.7,41.42625]
[1737635089520,3.2078,3195.1,3194.9,0.6262]
[1737635089718,3.2078,3195.1,3194.8,0.62622]
[1737635091410,3.83398,3195.1,3194.7,41.42624]
[1737635091718,3.2078,3195.1,3194.8,0.62623]
[1737635091920,3.83398,3195.1,3194.7,41.42624]
[1737635092224,3.2078,3195.1,3194.8,0.62623]
[1737635092524,3.2078,3195.1,3194.7,40.8]
[1737635092827,0.62621,3195.0,3194.7,41.42625]
[1737635093124,3.2078,3195.1,3194.7,40.8]
[1737635093326,3.2078,3195.1,3194.8,0.62622]
[1737635093716,3.2078,3195.1,3194.7,40.8]
[1737635094022,3.2078,3195.1,3194.9,0.62621]
[1737635094222,0.0046905,3195.3,3194.9,5.68992109]
[1737635094420,3.2078,3196.0,3195.2,2.48212109]
[1737635094623,3.2078,3196.0,3195.9,0.62602]
[1737635095120,3.2078,3196.0,3195.9,41.42602]
[1737635095519,3.2078,3196.0,3195.5,3.2078]
[1737635095827,3.2078,3196.0,3195.9,0.62602]
[1737635101625,3.2078,3196.0,3195.7,0.522]
[1737635102331,3.2078,3196.0,3195.9,0.62602]
[1737635102526,3.2078,3196.0,3195.7,0.522]
[1737635102724,3.2078,3196.0,3195.8,0.62602]
[1737635102924,3.2078,3196.0,3195.9,0.62602]
[1737635106432,3.2078,3196.0,3195.5,3.2078]
[1737635106731,3.2078,3196.0,3195.6,0.62608]
[1737635106935,3.2078,3196.0,3195.9,0.62602]
[1737635107729,0.5092,3197.3,3195.9,8.2078]
[1737635107939,0.5092,3197.3,3197.2,0.62576]
[1737635108334,0.5092,3197.3,3197.2,44.63356]
[1737635108733,0.5092,3197.3,3197.2,3.83356]
[1737635109131,0.5092,3197.3,3197.2,44.63356]
[1737635110037,0.0046905,3197.6,3197.2,44.0078]
[1737635110242,0.0046905,3197.6,3197.5,0.6257]
[1737635111331,5.68992109,3199.4,3197.5,5.0]
[1737635111633,0.5066,3199.2,3198.8,0.62544]
[1737635111832,0.5066,3199.2,3198.9,41.42543]
[1737635112038,0.5066,3199.2,3198.9,40.8]
[1737635112237,0.5066,3199.2,3199.1,3.2078]
[1737635112440,0.5066,3199.2,3199.1,3.83319]
[1737635113131,0.0046905,3199.4,3199.1,3.83319]
[1737635113132,0.0046905,3199.4,3199.3,0.62535]
[1737635115338,0.5066,3199.9,3199.3,0.62535]
[1737635115642,3.2078,3200.5,3199.8,6.211481]
[1737635115831,0.5155,3200.8,3200.6,0.6251]
[1737635116028,0.5155,3200.8,3200.3,3.2078]
[1737635116341,0.5155,3200.8,3200.4,0.62514]
[1737635116745,0.5155,3200.8,3200.5,0.62511]
[1737635117241,0.5155,3200.8,3200.4,0.62512]
[1737635117443,0.5155,3200.8,3200.3,3.2078]
[1737635117744,0.62512,3200.5,3200.2,0.0046905]
[1737635118137,3.2078,3200.6,3200.2,0.0046905]
[1737635118138,3.7285,3200.6,3200.2,0.0046905]
[1737635118644,4.13934526,3200.5,3200.2,0.6298605]
[1737635119041,4.13934526,3200.5,3200.2,0.0046905]
[1737635119335,1.0042,3200.8,3200.2,3.2124905]
[1737635119742,0.5155,3200.8,3200.7,0.62508]
[1737635120341,0.5155,3200.8,3200.6,3.83289]
[1737635120533,0.5155,3200.8,3200.6,3.2078]
[1737635120737,0.5155,3200.8,3200.6,3.8329]
[1737635121136,0.5155,3200.8,3200.2,0.0046905]
[1737635121137,0.5155,3200.8,3200.3,0.62516]
[1737635121741,0.5155,3200.8,3200.4,0.62512]
[1737635122163,0.5155,3200.8,3200.2,3.2124905]
[1737635122549,0.5155,3200.8,3200.5,0.6251]
[1737635122938,0.5155,3200.8,3200.3,0.62516]
[1737635123140,0.5155,3200.8,3200.6,0.62508]
[1737635123940,0.5155,3200.8,3200.7,0.62508]
[1737635124540,0.5155,3200.8,3200.7,41.42508]
[1737635124735,0.5155,3200.8,3200.7,0.62508]
[1737635124938,0.5155,3200.8,3200.6,0.62509]
[1737635125136,0.5155,3200.8,3200.2,3.2124905]
[1737635125347,0.62511,3200.6,3200.2,3.8376605]
[1737635125541,0.62511,3200.6,3200.2,3.2124905]
[1737635125740,0.62516,3200.3,3200.2,0.0046905]
[1737635125950,0.62516,3200.3,3199.7,3.2078]
[1737635125951,0.62519,3200.2,3199.7,3.2078]
[1737635126248,0.62525,3199.9,3199.7,3.2078]
[1737635126437,0.62522,3200.0,3199.7,3.2078]
[1737635126749,0.62521,3200.1,3199.6,0.62529]
[1737635127148,4.06589766,3200.0,3199.6,0.62529]
[1737635127336,4.06589766,3200.0,3199.5,0.0046905]
[1737635127544,0.5107,3200.2,3199.9,0.62522]
[1737635127742,0.5107,3200.2,3200.1,0.6252]
[1737635128750,0.5107,3200.2,3199.6,3.2078]
[1737635128954,0.5107,3200.2,3200.1,0.6252]
[1737635129251,0.4785,3200.3,3200.0,3.2078]
[1737635129446,4.66270922,3200.9,3200.1,3.003681]
[1737635129447,0.00302822,3200.9,3200.1,3.003681]
[1737635129653,0.00302822,3200.9,3200.8,0.62506]
[1737635130048,0.00302822,3200.9,3200.1,5.080081]
[1737635130352,4.03432588,3200.9,3200.0,3.2078]
[1737635130554,4.65936588,3200.9,3200.1,0.6252]
[1737635130748,4.65936588,3200.9,3200.4,0.62512]
[1737635130948,4.03432588,3200.9,3200.4,0.62512]
[1737635131145,4.03432588,3200.9,3200.0,3.2078]
[1737635131452,4.65937588,3200.9,3200.4,0.62512]
[1737635131654,0.62507,3200.8,3200.3,0.62515]
[1737635131959,0.62807822,3200.9,3200.4,0.62513]
[1737635132252,3.99130816,3200.8,3200.0,3.2078]
[1737635132450,3.99130816,3200.8,3200.5,0.62511]
[1737635132645,0.00302822,3200.9,3200.7,0.62508]
[1737635133042,0.00302822,3200.9,3200.8,0.62506]
[1737635133555,0.00302822,3200.9,3200.2,1.56295]
[1737635133752,0.00302822,3200.9,3200.1,44.330681]
[1737635133943,0.00302822,3200.9,3200.7,0.62508]
[1737635135054,0.00302822,3200.9,3200.1,44.330681]
[1737635135349,0.00302822,3200.9,3200.8,0.62506]
[1737635135550,0.00302822,3200.9,3200.1,44.330681]
[1737635135853,0.00302822,3200.9,3200.8,0.62506]
[1737635142260,0.00302822,3200.9,3200.8,41.42506]
[1737635147388,0.00302822,3200.9,3200.8,41.42506]
[1737635148270,0.5126,3201.5,3200.8,41.42506]
[1737635148458,0.5126,3201.5,3201.4,0.62494]
[1737635150180,3.7204,3201.5,3201.2,0.62496]
[1737635150379,3.7204,3201.5,3201.2,0.62498]
[1737635150584,3.7204,3201.5,3201.3,0.62495]
[1737635151378,3.7204,3201.5,3201.4,0.62494]
[1737635152877,3.7204,3201.5,3201.3,0.62495]
[1737635153180,3.7204,3201.5,3201.4,0.62494]
[1737635154084,3.2078,3201.5,3201.4,0.62494]
[1737635155186,0.0046905,3201.8,3201.4,3.83274]
[1737635155374,0.0046905,3201.8,3201.7,0.62488]
[1737635156281,0.0046905,3201.8,3201.7,41.42488]
[1737635158077,0.0046905,3201.8,3201.4,3.2078]
[1737635158278,0.6295705,3201.8,3201.4,3.2078]
[1737635158477,0.0046905,3201.8,3201.6,0.62489]
[1737635158886,0.0046905,3201.8,3201.5,0.6249]
[1737635159386,0.5039905,3201.8,3201.5,0.6249]
[1737635159886,0.5039905,3201.8,3201.6,0.62489]
[1737635160287,0.5039905,3201.8,3201.4,3.2078]
[1737635160486,1.1288705,3201.8,3201.5,0.62491]
[1737635160685,0.62498,3201.2,3201.1,0.0046905]
[1737635160885,3.2078,3201.2,3201.1,0.0046905]
[1737635161114,1.653,3201.5,3201.1,0.0046905]
[1737635161385,1.653,3201.5,3201.4,0.62494]
[1737635162178,0.0046905,3201.8,3201.7,0.62488]
[1737635163888,0.0046905,3201.8,3201.7,41.42488]
[1737635165988,0.5278,3202.4,3201.7,41.42488]
[1737635165989,0.5278,3202.4,3201.7,40.8]
[1737635166192,0.5278,3202.4,3202.3,0.62477]
[1737635166505,0.4963,3202.6,3202.5,0.62473]
[1737635168487,0.5102,3203.0,3202.5,0.62473]
[1737635168686,0.5102,3203.0,3202.9,0.62465]
[1737635169293,0.4963,3203.3,3202.6,2.47695016]
[1737635169493,0.4963,3203.3,3203.1,0.6246]
[1737635169726,0.4963,3203.3,3203.2,0.62459]
[1737635170392,0.4963,3203.3,3202.9,0.00468282]
[1737635170583,0.4963,3203.3,3202.9,0.62932282]
[1737635170787,0.4963,3203.3,3202.9,0.00468282]
[1737635170994,0.4963,3203.3,3202.9,0.62932282]
[1737635171190,0.4963,3203.3,3203.0,0.62463]
[1737635171988,0.4963,3203.3,3202.9,0.00468282]
[1737635172494,0.4963,3203.3,3203.2,0.62459]
[1737635172695,0.4963,3203.3,3202.9,0.00468282]
[1737635172993,0.4963,3203.3,3203.2,0.62459]
[1737635175986,3.7171,3203.8,3203.0,3.2078]
[1737635175987,3.7171,3203.8,3203.7,0.62449]
[1737635176388,3.2078,3203.8,3203.7,0.62449]
[1737635176900,0.5008,3203.9,3203.8,0.62447]
[1737635178096,0.62454,3203.5,3203.2,0.62458]
[1737635178396,3.83234,3203.5,3203.2,0.62457]
[1737635178596,3.83234,3203.5,3203.3,0.62457]
[1737635178801,3.2078,3203.5,3203.0,3.2078]
[1737635178997,0.62456,3203.4,3203.0,3.2078]
[1737635179193,1.11426,3203.4,3203.0,3.2078]
[1737635179504,0.4775,3203.3,3203.0,3.2078]
[1737635179798,0.5036,3203.2,3203.1,0.62461]
[1737635180897,3.2078,3203.5,3203.4,0.62455]
[1737635181407,0.5036,3203.7,3203.6,0.62451]
[1737635182696,0.5036,3203.7,3203.0,4.76937]
[1737635182890,0.5036,3203.7,3203.5,0.62452]
[1737635183293,0.5036,3203.7,3203.5,0.62453]
[1737635183698,0.5036,3203.7,3203.0,4.76936]
[1737635183699,0.5036,3203.7,3203.6,0.62451]
[1737635186298,0.5036,3203.7,3202.7,3.12346]
[1737635186500,0.62495,3201.4,3200.8,0.62504]
[1737635186704,0.62495,3201.4,3200.2,4.84118607]
[1737635186705,3.2078,3201.1,3200.2,4.84118607]
[1737635186899,3.2078,3201.1,3200.9,40.8]
[1737635187899,0.00465719,3201.3,3200.9,40.8]
[1737635188909,0.62498,3201.2,3200.9,40.8]
[1737635189098,0.62962719,3201.3,3200.9,40.8]
[1737635189307,0.00465719,3201.3,3200.9,40.8]
[1737635189905,0.62962719,3201.3,3200.9,40.8]
[1737635190105,0.00465719,3201.3,3200.9,40.8]
[1737635191095,0.00465719,3201.3,3201.0,0.5053]
[1737635191404,0.00465719,3201.3,3201.1,6.20912757]
[1737635191609,0.00465719,3201.3,3201.1,11.20912757]
[1737635192512,0.00465719,3201.3,3201.2,40.8]
[1737635193004,0.00465719,3201.3,3201.2,45.8]
[1737635193508,0.00465719,3201.3,3201.2,40.8]
[1737635197108,3.2078,3202.4,3201.2,45.8]
[1737635197309,0.5048,3202.3,3201.9,3.2078]
[1737635197612,0.62482,3202.0,3201.9,3.2078]
[1737635197912,0.62482,3202.0,3201.9,44.0078]
[1737635201516,0.62478,3202.3,3201.9,52.00912757]
[1737635201817,0.62478,3202.3,3202.0,0.5072]
[1737635202011,0.6248,3202.2,3202.0,0.5072]
[1737635202311,0.62481,3202.1,3202.0,0.5072]
[1737635203105,0.62481,3202.1,3202.0,41.3072]
[1737635203302,1.56178,3202.6,3202.0,41.3072]
[1737635203506,0.62481,3202.1,3202.0,41.3072]
[1737635203715,1.56178,3202.6,3202.0,41.3072]
[1737635203910,0.62481,3202.1,3202.0,41.3072]
[1737635205216,1.56178,3202.6,3202.0,41.3072]
[1737635205617,0.62481,3202.1,3202.0,41.3072]
[1737635205916,0.27581,3202.1,3202.0,41.3072]
[1737635206217,1.56178,3202.6,3202.0,41.3072]
[1737635206714,0.62481,3202.1,3202.0,41.3072]
[1737635207512,0.62481,3202.1,3202.0,40.8]
[1737635210719,0.5096,3202.7,3200.9,3.2078]
[1737635210720,0.62502,3201.0,3200.9,3.2078]
[1737635211215,0.62502,3201.0,3200.9,44.0078]
[1737635211815,0.62502,3201.0,3200.9,44.25850568]
[1737635213219,0.36128,3202.0,3200.9,44.25850568]
[1737635213414,0.62488,3201.8,3201.6,5.68301398]
[1737635214323,0.36128,3202.0,3201.6,5.68301398]
[1737635214521,0.62487,3201.8,3201.6,5.68301398]
[1737635215618,4.76964,3202.5,3201.6,5.68301398]
[1737635215818,0.62481,3202.1,3201.7,0.62488]
[1737635216216,4.76964,3202.5,3201.9,2.47521398]
[1737635216418,0.62482,3202.1,3201.9,2.47521398]
[1737635216776,0.62482,3202.1,3202.0,40.8]
[1737635223529,0.27609412,3202.1,3202.0,40.8]
[1737635223928,1.0211,3202.8,3202.0,40.8]
[1737635223929,3.2078,3203.3,3202.0,44.0078]
[1737635224131,3.2078,3203.7,3203.2,2.47521398]
[1737635224324,2.01365585,3203.7,3203.2,2.47521398]
[1737635224624,0.62455,3203.4,3203.3,40.8]
[1737635225027,0.62475,3202.4,3202.3,2.4798968]
[1737635225427,3.6964,3203.3,3202.3,2.4798968]
[1737635225641,0.62469,3202.7,3202.6,3.2078]
[1737635225954,0.62469,3202.7,3202.6,44.0078]
[1737635226528,0.62469,3202.7,3202.6,46.48301398]
[1737635227633,1.0004,3203.1,3202.6,46.48301398]
[1737635227829,0.62468,3202.8,3202.6,46.48301398]
[1737635230834,0.62469,3202.7,3202.6,46.48301398]
[1737635231226,0.62469,3202.7,3202.6,44.0078]
[1737635232127,0.62469,3202.7,3202.6,40.8]
[1737635232526,0.62469,3202.7,3202.6,44.0078]
[1737635233740,0.62469,3202.7,3202.6,40.8]
[1737635234933,0.62475,3202.4,3202.3,0.00468282]
[1737635235134,0.62486,3201.8,3201.7,3.2078]
[1737635235834,0.506,3202.2,3201.7,44.0078]
[1737635236031,0.62482,3202.1,3202.0,3.2078]
[1737635238241,6.67161398,3202.2,3201.6,0.00468282]
[1737635238441,0.62488,3201.7,3201.6,0.00468282]
[1737635238946,0.62488,3201.7,3201.6,40.80468282]
[1737635241644,0.62488,3201.7,3201.6,41.79168282]
[1737635244542,0.62484,3202.0,3201.6,41.79168282]
[1737635244748,0.62482,3202.0,3201.9,3.2078]
[1737635248438,0.00468282,3202.3,3201.6,41.79168282]
[1737635248839,0.62486,3201.9,3201.6,41.79168282]
[1737635249444,0.00468282,3202.3,3201.6,41.79168282]
[1737635249750,0.62485,3201.9,3201.6,41.79168282]
[1737635250446,0.00468282,3202.3,3201.6,41.79168282]
[1737635250646,0.62486,3201.9,3201.6,41.79168282]
[1737635251745,0.00468282,3202.3,3201.6,41.79168282]
[1737635252350,0.62485,3201.9,3201.6,41.79168282]
[1737635252552,0.00468282,3202.3,3201.6,41.79168282]
[1737635252747,0.62488,3201.7,3201.6,41.79168282]
[1737635252948,0.62488,3201.7,3201.6,40.80468282]
[1737635254352,0.62488,3201.8,3201.6,40.80468282]
[1737635256458,0.62488,3201.7,3201.6,40.80468282]
[1737635257753,0.62488,3201.7,3201.6,0.00468282]
[1737635257964,3.83268,3201.7,3201.6,0.00468282]
[1737635258259,0.625,3201.1,3201.0,3.2078]
[1737635258757,0.625,3201.1,3201.0,44.0078]
[1737635260152,3.2078,3201.7,3201.0,44.0078]
[1737635260153,4.77006,3201.7,3201.0,44.0078]
[1737635260384,0.62498,3201.2,3201.1,1.0499]
[1737635260554,0.62497,3201.3,3201.1,1.0499]
[1737635260756,0.62496,3201.3,3201.2,2.47521398]
[1737635261257,0.62495,3201.4,3201.2,2.47521398]
[1737635262259,0.62496,3201.4,3201.2,2.47521398]
[1737635262459,2.04094,3201.9,3201.2,2.47521398]
[1737635262755,0.4788,3201.9,3201.2,2.47521398]
[1737635262952,0.62495,3201.4,3201.2,2.47521398]
[1737635263560,4.76985,3202.1,3201.2,2.47521398]
[1737635263757,4.76985,3202.1,3201.5,2.47521398]
[1737635263963,0.62489,3201.7,3201.6,0.5228]
[1737635264261,3.2078,3202.1,3201.6,41.3228]
[1737635264564,0.6248,3202.2,3201.8,5.68301398]
[1737635264759,0.6248,3202.2,3201.9,0.4834]
[1737635264953,3.2078,3202.5,3201.9,0.4834]
[1737635265149,0.62481,3202.1,3201.9,0.4834]
[1737635265451,0.62477,3202.3,3201.9,0.4834]
[1737635265653,0.16430222,3202.6,3202.2,3.2078]
[1737635265852,0.62472,3202.6,3202.4,2.47521398]
[1737635266054,0.00468282,3202.7,3202.4,2.47521398]
[1737635266767,0.62938282,3202.7,3202.4,2.47521398]
[1737635267267,0.00468282,3202.7,3202.4,2.47521398]
[1737635267659,0.62937282,3202.7,3202.4,2.47521398]
[1737635268062,0.62473,3202.5,3202.4,2.47521398]
[1737635268269,0.62475,3202.4,3202.3,1.0416]
[1737635268982,0.62475,3202.4,3202.3,0.5228]
[1737635269164,0.62477,3202.3,3202.2,0.00468282]
[1737635269976,0.62477,3202.3,3202.2,0.00468282]
[1737635279364,5.62477,3202.3,3202.2,0.00468282]
[1737635280671,0.62477,3202.3,3202.2,0.00468282]
[1737635281564,5.62477,3202.3,3202.2,0.00468282]
[1737635281761,6.643,3202.3,3201.6,40.8]
[1737635281967,6.643,3202.3,3201.0,0.16145704]
[1737635281968,0.625,3201.1,3201.0,0.16145704]
[1737635282166,0.62502,3201.0,3200.9,5.68301398]
[1737635282363,3.2078,3201.7,3200.9,46.48301398]
[1737635282570,0.62493,3201.5,3201.2,0.62497]
[1737635282771,0.62493,3201.5,3201.4,2.47521398]
[1737635283478,0.62496,3201.4,3201.1,2.47521398]
[1737635283974,0.6249,3201.6,3201.1,2.47521398]
[1737635284171,0.62497,3201.3,3201.1,2.47521398]
[1737635284670,0.62498,3201.2,3201.0,0.00468282]
[1737635284874,0.625,3201.1,3201.0,0.00468282]
[1737635285474,0.62496,3201.3,3201.0,0.00468282]
[1737635285672,0.62495,3201.4,3201.0,0.00468282]
[1737635285873,3.2078,3201.7,3201.0,0.62969282]
[1737635286079,0.62495,3201.4,3201.0,0.00468282]
[1737635286677,0.62492,3201.6,3201.1,3.10020398]
[1737635286878,0.62493,3201.5,3201.3,3.2078]
[1737635287069,0.62493,3201.5,3201.4,0.4822]
[1737635287466,3.2078,3202.2,3201.4,0.4822]
[1737635287668,0.62491,3201.6,3201.5,41.7916]
[1737635288071,3.2078,3201.8,3201.3,3.2078]
[1737635288273,0.62494,3201.4,3201.3,3.2078]
[1737635288472,0.625,3201.2,3201.0,0.00468282]
[1737635288672,0.625,3201.2,3201.1,40.8]
[1737635290883,0.62498,3201.2,3201.1,40.8]
[1737635291479,0.62493,3201.5,3201.1,40.8]
[1737635291871,3.2078,3201.8,3201.3,3.10016398]
[1737635292072,0.62489,3201.7,3201.3,5.68301398]
[1737635292592,1.56204,3202.1,3201.3,5.68301398]
[1737635292784,1.56204,3202.1,3201.4,0.5047]
[1737635293186,1.56204,3202.1,3201.5,0.5053]
[1737635293486,0.6249,3201.7,3201.6,0.5152]
[1737635293881,0.62486,3201.9,3201.6,0.5152]
[1737635294082,0.62487,3201.8,3201.6,0.5152]
[1737635294585,3.2078,3202.2,3201.6,0.5152]
[1737635294779,0.62488,3201.7,3201.6,0.5152]
[1737635296686,0.62487,3201.8,3201.6,0.5152]
[1737635297482,0.62483,3202.0,3201.6,2.99041398]
[1737635298285,0.62483,3202.0,3201.7,40.8]
[1737635299287,1.01640522,3202.3,3201.7,40.8]
[1737635299288,0.62482,3202.1,3201.7,40.8]
[1737635299489,0.62482,3202.1,3201.9,2.47521398]
[1737635299680,0.62479,3202.2,3201.9,2.47521398]
[1737635300485,1.0763169,3202.6,3201.9,2.47521398]
[1737635300486,0.5680169,3202.6,3201.9,2.47521398]
[1737635300688,1.02108804,3202.7,3202.3,2.47521398]
[1737635300892,0.57269972,3202.7,3202.4,1.51]
[1737635301185,0.62473,3202.5,3202.4,1.51]
[1737635302587,0.62473,3202.5,3202.4,0.9879]
[1737635302798,0.62473,3202.5,3202.4,0.4866]
[1737635302983,0.00468282,3202.7,3202.1,3.2078]
[1737635303183,0.62484,3201.9,3201.8,0.5078]
[1737635303594,1.07322832,3201.9,3201.8,0.5078]
[1737635303894,1.64124522,3201.9,3201.8,0.5078]
[1737635305494,1.1928569,3201.9,3201.8,0.5078]
[1737635307194,1.64124522,3201.9,3201.8,0.5078]
[1737635307787,1.64124522,3201.9,3201.8,1.0184]
[1737635308499,1.1928569,3201.9,3201.8,1.0184]
[1737635308796,1.1928569,3201.9,3201.8,41.8184]
[1737635310397,1.1928569,3201.9,3201.8,41.3078]
[1737635310697,0.62492,3201.5,3201.4,2.47521398]
[1737635310893,1.1929369,3201.5,3201.4,2.47521398]
[1737635311093,1.1929369,3201.5,3201.4,43.27521398]
[1737635311797,0.5680169,3201.5,3201.4,43.27521398]
[1737635312805,0.6249,3201.7,3201.4,43.47281323]
[1737635313305,1.1929169,3201.7,3201.4,41.71411092]
[1737635314501,1.01640522,3201.9,3201.4,41.71411092]
[1737635314696,2.58879341,3202.0,3201.8,3.10007398]
[1737635314903,2.05411264,3202.0,3201.9,0.9814]
[1737635315299,0.85301264,3202.0,3201.9,0.9814]
[1737635315599,3.2078,3202.5,3201.9,0.9814]
[1737635315803,0.62479,3202.2,3202.1,2.47521398]
[1737635316501,0.62479,3202.2,3202.1,43.27521398]
[1737635316697,3.2078,3202.5,3202.1,43.27521398]
[1737635316900,0.62472,3202.6,3202.2,3.2078]
[1737635317290,0.00468282,3202.7,3202.2,3.2078]
[1737635317494,1.56155,3203.1,3202.4,2.47521398]
[1737635317793,0.62472,3202.6,3202.4,2.47521398]
[1737635318193,1.56155,3203.1,3202.4,2.47521398]
[1737635318400,1.56155,3203.1,3202.5,0.515]
[1737635318598,0.62471,3202.6,3202.5,3.7228]
[1737635318797,0.62468,3202.8,3202.5,3.7228]
[1737635319100,0.00468282,3203.1,3202.5,3.7228]
[1737635319301,0.00468282,3203.1,3202.7,2.47521398]
[1737635319498,3.2078,3203.4,3203.0,2.47521398]
[1737635319499,0.6246,3203.2,3203.0,2.47521398]
[1737635320102,3.2078,3203.4,3203.0,2.47521398]
[1737635320397,0.62457,3203.3,3203.0,2.47521398]
[1737635320600,0.62457,3203.3,3203.1,0.4926]
[1737635321394,0.62455,3203.4,3203.1,0.4926]
[1737635321801,0.62455,3203.5,3203.1,0.4926]
[1737635322002,3.2078,3203.8,3203.1,0.4926]
[1737635322003,0.62455,3203.4,3203.3,2.47521398]
[1737635322803,0.62455,3203.4,3203.3,43.27521398]
[1737635323402,0.62462,3203.1,3202.9,3.2078]
[1737635323601,0.6246,3203.2,3202.9,3.2078]
[1737635323799,0.62462,3203.1,3202.9,3.2078]
[1737635324197,0.4866,3203.5,3202.9,3.2078]
[1737635324399,0.62462,3203.1,3202.9,3.2078]
[1737635326103,0.62463,3203.0,3202.9,3.2078]
[1737635326604,0.62465,3202.9,3202.8,0.50708282]
[1737635327202,0.62465,3202.9,3202.8,0.00468282]
[1737635328710,0.62465,3202.9,3202.8,40.80468282]
[1737635329211,0.62471,3202.6,3202.5,3.2078]
[1737635330207,0.5268,3202.8,3202.5,3.2078]
[1737635330404,0.6247,3202.7,3202.5,3.2078]
[1737635331009,0.6247,3202.7,3202.6,40.8]
[1737635334098,0.62471,3202.6,3202.5,3.2078]
[1737635334298,1.64601,3202.6,3202.5,3.2078]
[1737635334499,1.64601,3202.6,3202.5,40.8]
[1737635337999,0.62471,3202.6,3202.5,40.8]
[1737635339808,0.83787304,3202.9,3202.2,0.51308282]
[1737635340008,4.76948,3202.8,3202.2,0.51308282]
[1737635340311,0.62477,3202.3,3202.2,0.00468282]
[1737635340807,0.62477,3202.3,3202.2,40.80468282]
[1737635341210,0.62474,3202.5,3202.2,40.80468282]
[1737635341411,0.62474,3202.5,3202.4,2.47521398]
[1737635341608,0.62472,3202.6,3202.4,2.47521398]
[1737635341815,0.62471,3202.6,3202.5,3.2078]
[1737635342320,0.00468282,3202.9,3202.5,3.2078]
[1737635342509,0.00468282,3202.9,3202.7,2.47521398]
[1737635342819,0.62933282,3202.9,3202.8,0.4848]
[1737635343011,0.62933282,3202.9,3202.8,0.9947]
[1737635344305,0.62933282,3202.9,3202.5,3.2078]
[1737635344306,0.00468282,3202.9,3202.5,3.2078]
[1737635344507,0.62471,3202.6,3202.5,3.6926]
[1737635345523,1.56635282,3202.9,3202.4,0.5282]
[1737635345820,1.56172,3202.8,3202.2,40.80468282]